bitfinex/quotes_SOLUSD_20251009
["timestamp","ask_amount","ask_price","bid_price","bid_amount"]
[1760033989017,5.2807954,219.26,219.25,0.1]
[1760033989221,39.48676091,219.26,219.16,20.9]
[1760033989402,20.8,219.22,219.03,0.1]
[1760033989599,20.8,219.18,219.08,0.67]
[1760033989805,20.8,219.16,219.08,0.67]
[1760033990027,35.35058845,219.15,219.08,0.67]
[1760033990205,3.07058845,219.14,219.09,10.87647521]
[1760033990399,3.07058845,219.13,219.11,10.87647521]
[1760033990719,4.56287643,219.16,219.12,0.67]
[1760033990905,3.07058845,219.15,219.12,0.67]
[1760033991104,3.07058845,219.14,219.12,0.67]
[1760033991309,3.07058845,219.13,219.12,0.67]
[1760033991621,3.07058845,219.15,219.1,10.87647521]
[1760033991824,3.07058845,219.14,219.11,0.67]
[1760033992026,3.07058845,219.15,219.11,0.67]
[1760033992203,3.07058845,219.14,219.11,0.67]
[1760033992399,3.07058845,219.15,219.11,0.67]
[1760033992902,4.56329287,219.14,219.11,0.67]
[1760033993522,4.56329287,219.14,219.09,0.67]
[1760033993720,4.56329287,219.14,219.07,10.87647521]
[1760033994022,4.56329287,219.14,219.1,0.67]
[1760033994610,4.56329287,219.14,219.07,10.87647521]
[1760033994921,4.56329287,219.14,219.09,10.87647521]
[1760033995117,4.56329287,219.14,219.1,0.67]
[1760033996106,12.12548991,219.2,219.11,0.67]
[1760033996307,48.22788173,219.19,219.12,10.87647521]
[1760033996521,3.06189063,219.18,219.12,11.54647521]
[1760033997228,3.78189063,219.18,219.12,11.54647521]
[1760033997720,36.04189063,219.18,219.12,11.54647521]
[1760033997922,4.56266824,219.17,219.12,11.54647521]
[1760033998119,5.28266824,219.17,219.12,11.54647521]
[1760033999016,16.68933886,219.17,219.12,11.54647521]
[1760034001432,0.72,219.16,219.08,31.67647521]
[1760034001725,0.72,219.15,219.08,31.67647521]
[1760034002426,0.72,219.14,219.08,31.67647521]
[1760034002814,0.72,219.14,219.08,32.33647521]
[1760034003425,4.56350111,219.13,219.08,32.33647521]
[1760034003628,4.56350111,219.13,219.09,0.66]
[1760034004322,4.56350111,219.13,219.1,0.66]
[1760034004523,0.7,219.12,219.1,80.3]
[1760034004725,0.7,219.11,219.1,80.3]
[1760034005619,5.26391766,219.11,219.1,80.3]
[1760034006023,16.67371182,219.11,219.06,0.1]
[1760034006220,0.7,219.1,219.06,0.1]
[1760034007232,0.7,219.09,219.06,0.1]
[1760034008441,0.7,219.08,219.06,0.1]
[1760034009021,4.56475099,219.07,219.06,0.1]
[1760034009336,0.7,219.13,219.06,0.76]
[1760034009643,32.92,219.12,219.06,0.76]
[1760034010622,32.92,219.12,219.06,0.1]
[1760034011220,15.97371182,219.11,219.06,0.1]
[1760034011618,0.7,219.1,219.06,0.1]
[1760034011948,0.7,219.09,219.06,0.1]
[1760034012117,15.97371182,219.11,219.06,0.1]
[1760034012317,0.7,219.1,219.06,0.1]
[1760034012718,15.97517001,219.09,219.06,0.1]
[1760034012937,0.7,219.08,219.06,0.1]
[1760034013242,0.7,219.07,219.06,0.1]
[1760034014219,5.26475099,219.07,219.06,0.1]
[1760034014431,8.31422072,219.07,219.06,0.1]
[1760034014738,19.7260982,219.07,219.03,0.1]
[1760034014929,35.28946973,219.06,219.03,0.1]
[1760034015126,3.04946973,219.05,219.03,0.1]
[1760034015325,3.04946973,219.04,219.03,0.1]
[1760034015844,32.24,219.04,219.03,0.1]
[1760034016041,35.28946973,219.04,219.03,0.1]
[1760034016241,40.55484591,219.04,219.03,0.1]
[1760034016540,7.61484591,219.04,219.03,0.1]
[1760034016739,7.61461488,219.06,219.03,0.76]
[1760034016926,3.04946973,219.07,219.04,0.66]
[1760034017129,7.61424093,219.07,219.05,0.66]
[1760034017432,4.5647712,219.07,219.05,0.66]
[1760034017620,7.61424093,219.07,219.05,0.66]
[1760034017820,4.5647712,219.07,219.05,0.66]
[1760034018045,7.61398761,219.09,219.05,0.66]
[1760034018374,7.61398761,219.09,219.06,0.66]
[1760034018644,4.56451788,219.09,219.06,11.53647521]
[1760034019147,4.56412596,219.1,219.06,11.53647521]
[1760034019325,7.61359569,219.1,219.06,91.83647521]
[1760034019520,4.56412596,219.1,219.06,91.83647521]
[1760034019741,7.61359569,219.1,219.06,91.83647521]
[1760034019942,4.56412596,219.1,219.06,91.83647521]
[1760034020241,7.61359569,219.1,219.06,91.83647521]
[1760034020426,3.04946973,219.09,219.08,10.87647521]
[1760034020626,3.04946973,219.1,219.08,11.53647521]
[1760034021334,3.04946973,219.12,219.06,80.3]
[1760034021534,3.04946973,219.15,219.09,11.56647521]
[1760034021741,3.04946973,219.18,219.1,32.93]
[1760034021917,3.04946973,219.17,219.11,0.69]
[1760034022136,3.04946973,219.16,219.12,10.87647521]
[1760034022341,3.04946973,219.18,219.13,0.69]
[1760034022639,3.04946973,219.17,219.13,0.69]
[1760034023341,3.04946973,219.17,219.07,32.21187748]
[1760034023342,3.74946973,219.16,219.07,0.69]
[1760034023560,3.74946973,219.16,219.09,10.87647521]
[1760034023861,0.7,219.15,219.09,10.87647521]
[1760034024078,3.74946973,219.14,219.09,10.87647521]
[1760034024250,3.74946973,219.13,219.08,32.24]
[1760034024453,3.74946973,219.12,219.08,32.24]
[1760034024653,0.7,219.12,219.08,32.24]
[1760034025173,3.04946973,219.15,219.03,0.1]
[1760034025174,15.97444088,219.1,219.03,0.1]
[1760034025340,3.74946973,219.09,219.03,0.1]
[1760034025546,3.04946973,219.08,219.03,10.97647521]
[1760034025880,3.04946973,219.09,219.04,0.69]
[1760034026037,3.04946973,219.09,219.05,0.69]
[1760034026234,3.04946973,219.09,219.03,11.66647521]
[1760034026454,3.04946973,219.08,219.03,11.66647521]
[1760034026649,0.7,219.08,219.03,10.97647521]
[1760034026850,3.74946973,219.07,219.03,0.1]
[1760034027061,3.04946973,219.06,219.03,0.1]
[1760034027258,4.56537618,219.04,219.03,0.1]
[1760034027462,7.61484591,219.04,219.03,0.1]
[1760034027639,8.31484591,219.04,219.03,0.1]
[1760034032451,12.14795745,219.04,219.03,0.1]
[1760034032964,5.26537618,219.04,219.03,0.1]
[1760034033160,12.14634791,219.04,219.03,0.1]
[1760034033951,19.7370263,219.04,219.0,0.1]
[1760034034146,3.82500679,219.01,219.0,0.1]
[1760034034375,3.05820966,219.01,219.0,0.1]
[1760034034585,39.8047732,219.01,219.0,0.1]
[1760034034870,35.97820966,219.01,218.94,0.69]
[1760034035068,6.88501339,219.0,218.94,0.69]
[1760034035241,3.05820966,218.99,218.94,0.69]
[1760034035448,3.05820966,218.98,218.94,10.87647521]
[1760034035663,3.05820966,218.97,218.95,0.69]
[1760034035852,3.05820966,218.96,218.95,11.56647521]
[1760034037357,4.56664533,218.98,218.95,11.56647521]
[1760034037558,3.05909975,218.97,218.95,10.87647521]
[1760034037760,4.56664533,218.98,218.95,10.87647521]
[1760034037951,3.05909975,218.97,218.96,11.56647521]
[1760034038352,3.05870794,219.02,218.97,10.87647521]
[1760034038577,3.82680373,219.04,218.97,10.87647521]
[1760034038578,3.05870794,219.01,218.99,10.87647521]
[1760034038753,4.56537618,219.04,219.0,0.69]
[1760034038956,3.05822537,219.03,218.99,10.87647521]
[1760034039268,3.05822537,219.02,218.99,10.87647521]
[1760034039470,3.05822537,219.01,218.99,10.87647521]
[1760034039774,4.56537618,219.04,218.99,10.87647521]
[1760034039960,3.05841533,219.03,218.99,10.87647521]
[1760034040160,3.05841533,219.02,218.99,10.87647521]
[1760034040362,3.05841533,219.01,218.99,10.87647521]
[1760034040561,0.66,219.03,218.99,10.87647521]
[1760034040769,3.71860078,219.02,218.99,10.87647521]
[1760034040969,3.05860078,219.01,218.99,10.87647521]
[1760034041169,4.56537618,219.04,218.99,11.56647521]
[1760034041469,3.05870708,219.03,218.99,11.56647521]
[1760034041668,3.05870708,219.02,218.99,11.56647521]
[1760034041865,3.05870708,219.01,218.99,10.87647521]
[1760034042066,4.56572954,219.03,218.99,10.87647521]
[1760034042262,3.05925556,219.02,218.99,10.87647521]
[1760034042572,3.05925556,219.01,218.99,10.87647521]
[1760034042877,5.22572954,219.03,218.99,91.17647521]
[1760034043180,3.0597349,219.02,218.99,91.17647521]
[1760034043386,3.0597349,219.01,218.99,91.17647521]
[1760034043678,3.0597349,219.02,218.99,91.17647521]
[1760034043882,3.0597349,219.01,218.99,91.17647521]
[1760034044068,5.22572954,219.03,218.99,91.17647521]
[1760034044252,0.66,219.03,218.99,91.17647521]
[1760034044571,4.56559521,219.03,218.99,91.17647521]
[1760034044778,4.56559521,219.03,218.99,91.86647521]
[1760034045172,4.56559521,219.03,218.99,91.17647521]
[1760034045369,5.26559521,219.03,218.99,91.17647521]
[1760034045768,4.56537618,219.04,218.99,91.17647521]
[1760034045969,5.26537618,219.04,218.99,91.17647521]
[1760034046178,0.7,219.03,218.99,91.17647521]
[1760034046378,0.7,219.02,218.99,91.17647521]
[1760034046583,4.56537618,219.04,218.99,91.17647521]
[1760034046786,0.7,219.03,218.99,91.17647521]
[1760034047179,4.56579307,219.02,218.99,91.17647521]
[1760034047585,4.56555679,219.04,219.0,0.67]
[1760034047777,4.56555679,219.04,219.01,0.67]
[1760034048166,7.62597314,219.04,218.99,124.08647521]
[1760034048367,4.56555679,219.04,219.0,0.67]
[1760034048583,7.62561457,219.05,219.02,10.87647521]
[1760034048881,0.7,219.08,219.02,10.87647521]
[1760034048882,3.06306989,219.07,219.03,0.67]
[1760034049065,3.06306989,219.08,219.04,0.67]
[1760034049267,7.62796797,219.07,219.05,0.67]
[1760034049468,3.06306989,219.08,219.06,11.54647521]
[1760034049668,3.06306989,219.13,219.08,10.87647521]
[1760034049891,0.7,219.12,219.08,123.39647521]
[1760034050066,3.06306989,219.13,219.08,123.39647521]
[1760034050267,3.76306989,219.13,219.08,123.39647521]
[1760034050463,0.7,219.13,219.08,124.06647521]
[1760034050887,5.26353454,219.13,219.08,124.06647521]
[1760034051186,3.06306989,219.14,219.08,124.06647521]
[1760034051482,43.62591596,219.19,219.1,10.87647521]
[1760034051483,3.06306989,219.17,219.1,10.87647521]
[1760034051693,3.06306989,219.18,219.11,32.93]
[1760034051866,3.06306989,219.18,219.13,10.87647521]
[1760034052063,3.06306989,219.18,219.13,11.54647521]
[1760034052367,4.56246007,219.18,219.13,11.54647521]
[1760034052568,7.62552996,219.18,219.14,32.95]
[1760034052764,4.56204379,219.2,219.15,11.54647521]
[1760034052968,4.56204379,219.2,219.16,0.67]
[1760034053966,4.56204379,219.2,219.15,10.87647521]
[1760034054164,0.7,219.19,219.1,20.8]
[1760034054374,0.7,219.18,219.11,10.87647521]
[1760034054593,0.7,219.17,219.11,10.87647521]
[1760034054801,0.7,219.16,219.08,10.87647521]
[1760034054984,0.7,219.15,219.08,10.87647521]
[1760034055170,0.7,219.14,219.08,10.87647521]
[1760034056291,4.56350111,219.13,219.08,10.87647521]
[1760034056590,5.26350111,219.13,219.08,10.87647521]
[1760034058695,4.56350111,219.13,219.08,11.54647521]
[1760034059198,3.05686508,219.14,219.1,10.87647521]
[1760034059375,4.56287643,219.16,219.11,0.67]
[1760034059576,4.56287643,219.16,219.08,15.44089918]
[1760034059577,4.56287643,219.16,219.08,22.98447506]
[1760034059781,0.7,219.15,219.08,23.65447506]
[1760034059984,0.7,219.15,219.08,10.87647521]
[1760034060184,0.7,219.14,219.08,10.87647521]
[1760034060494,4.56350111,219.13,219.08,10.87647521]
[1760034060688,4.56350111,219.13,219.08,43.82647521]
[1760034060876,5.26350111,219.13,219.08,43.82647521]
[1760034061474,0.7,219.12,219.07,10.87647521]
[1760034061681,15.9722539,219.13,219.07,10.87647521]
[1760034061682,0.7,219.11,219.07,43.15647521]
[1760034062095,16.6722539,219.13,219.07,43.15647521]
[1760034063679,3.716183,219.12,219.05,0.67]
[1760034063879,3.716183,219.12,219.06,10.87647521]
[1760034064208,0.66,219.11,219.05,10.87647521]
[1760034064579,3.056183,219.12,219.06,0.67]
[1760034065500,4.56391766,219.11,219.06,0.67]
[1760034065899,5.22391766,219.11,219.06,0.67]
[1760034066685,5.22391766,219.11,219.06,80.97]
[1760034067105,0.66,219.1,219.02,20.8]
[1760034067282,0.66,219.09,219.03,43.13647521]
[1760034068612,0.66,219.08,219.03,10.87647521]
[1760034068791,4.56475099,219.07,219.03,10.87647521]
[1760034069200,5.22475099,219.07,219.03,10.87647521]
[1760034069612,4.56475099,219.07,219.03,10.87647521]
[1760034069824,4.56475099,219.07,218.99,15.97514383]
[1760034069825,0.66,219.06,218.99,10.87647521]
[1760034070117,0.66,219.05,219.0,32.24]
[1760034070288,0.66,219.04,219.0,32.24]
[1760034070796,4.56558462,219.03,219.0,32.24]
[1760034071192,0.66,219.02,218.98,80.3]
[1760034071508,0.66,219.01,218.95,32.24]
[1760034071709,0.66,219.0,218.95,32.24]
[1760034071920,3.05915197,219.02,218.92,10.87647521]
[1760034071921,0.66,218.99,218.92,10.87647521]
[1760034072092,0.66,218.98,218.92,10.87647521]
[1760034072288,0.66,218.97,218.88,0.1]
[1760034072526,3.71915197,218.97,218.88,0.1]
[1760034072819,15.98465472,218.96,218.88,0.1]
[1760034073309,0.66,218.95,218.88,0.1]
[1760034074010,3.71780951,218.95,218.88,0.1]
[1760034074323,0.66,218.95,218.88,10.97647521]
[1760034074911,0.66,218.94,218.88,10.97647521]
[1760034075091,0.66,218.93,218.88,10.97647521]
[1760034075293,0.66,218.92,218.88,10.97647521]
[1760034075806,0.66,218.91,218.88,0.1]
[1760034076195,0.66,218.9,218.88,0.1]
[1760034076719,0.66,218.89,218.88,0.1]
[1760034077012,0.66,218.95,218.88,0.1]
[1760034077189,3.7166086,218.95,218.88,0.1]
[1760034078906,15.98757536,218.92,218.88,0.1]
[1760034079093,36.78757536,218.92,218.88,0.1]
[1760034079294,0.66,218.91,218.88,0.1]
[1760034081099,4.56829602,218.9,218.88,0.1]
[1760034081317,0.66,218.89,218.88,0.1]
[1760034083109,26.02850472,218.89,218.88,0.1]
[1760034084192,37.44976654,218.89,218.84,0.1]
[1760034084717,3.04366085,218.88,218.81,0.1]
[1760034084898,20.8,218.84,218.81,0.1]
[1760034085102,4.56975734,218.83,218.81,0.1]
[1760034085290,32.28,218.82,218.81,0.1]
[1760034085716,32.94,218.82,218.81,0.1]
[1760034086094,32.94,218.82,218.81,1e-08]
[1760034086895,20.8,218.79,218.78,0.1]
[1760034087095,25.3705928,218.79,218.78,0.1]
[1760034087318,26.0305928,218.79,218.78,0.1]
[1760034091119,26.0305928,218.79,218.76,0.1]
[1760034091120,37.45707481,218.79,218.76,0.1]
[1760034091319,32.26,218.78,218.76,0.1]
[1760034091710,36.79707481,218.79,218.76,0.1]
[1760034091904,0.66,218.77,218.76,0.1]
[1760034093202,5.23101065,218.77,218.76,0.1]
[1760034094921,4.57101065,218.77,218.76,0.1]
[1760034095129,36.83101065,218.77,218.76,0.1]
[1760034096410,4.57081235,218.78,218.76,0.1]
[1760034096615,32.26,218.79,218.76,0.76]
[1760034096930,32.26,218.79,218.77,0.66]
[1760034098033,36.83071607,218.79,218.76,0.1]
[1760034098236,36.83071607,218.79,218.77,0.66]
[1760034098447,4.56954852,218.84,218.78,0.66]
[1760034098618,4.56954852,218.84,218.78,80.96]
[1760034098960,13.97629695,218.89,218.76,0.1]
[1760034098961,0.69,218.92,218.8,10.87647521]
[1760034099247,20.8,218.88,218.82,10.87647521]
[1760034099420,21.49,218.88,218.8,0.66]
[1760034100115,21.49,218.88,218.76,0.1]
[1760034100116,20.8,218.84,218.76,0.1]
[1760034100434,32.3,218.83,218.76,0.1]
[1760034100624,32.99,218.83,218.76,0.1]
[1760034101013,20.8,218.84,218.77,0.66]
[1760034101212,32.32,218.84,218.77,0.66]
[1760034102042,4.56975734,218.83,218.77,0.66]
[1760034103640,15.99284401,218.85,218.77,0.66]
[1760034103818,48.31284401,218.85,218.77,0.66]
[1760034104326,48.31284401,218.85,218.77,5.23100739]
[1760034104516,48.31284401,218.85,218.78,0.66]
[1760034104933,49.00284401,218.85,218.78,0.66]
[1760034105241,49.00284401,218.85,218.78,80.96]
[1760034107018,15.99284401,218.85,218.79,0.67]
[1760034107219,4.56910642,218.87,218.8,10.87647521]
[1760034107443,5.26910642,218.87,218.82,10.87647521]
[1760034107643,5.26910642,218.87,218.82,91.17647521]
[1760034107644,0.7,218.86,218.82,91.17647521]
[1760034108343,4.56910642,218.87,218.83,0.67]
[1760034108534,4.56871345,218.88,218.83,0.67]
[1760034109046,4.56840421,218.9,218.84,0.67]
[1760034109240,4.56840421,218.9,218.85,10.87647521]
[1760034109424,4.56797243,218.92,218.82,4.5698433]
[1760034109626,5.26797243,218.92,218.86,0.67]
[1760034109835,5.26797243,218.92,218.85,32.3]
[1760034110347,19.03041786,218.92,218.85,32.3]
[1760034110644,4.56829602,218.9,218.85,32.3]
[1760034111138,5.26829602,218.9,218.85,32.3]
[1760034111548,0.7,218.89,218.85,32.3]
[1760034113133,4.56829602,218.9,218.85,32.3]
[1760034113332,5.26829602,218.9,218.85,32.3]
[1760034114248,0.7,218.89,218.83,80.3]
[1760034114561,3.75421809,218.89,218.83,112.6]
[1760034115053,0.7,218.89,218.83,112.6]
[1760034115346,3.75690765,218.89,218.83,112.6]
[1760034115551,3.05690765,218.89,218.84,11.54647521]
[1760034115850,4.56829602,218.9,218.85,0.67]
[1760034116153,4.56829602,218.9,218.86,0.67]
[1760034116348,7.62520367,218.9,218.86,0.67]
[1760034116532,4.56829602,218.9,218.84,11.54647521]
[1760034116735,7.62520367,218.9,218.84,11.54647521]
[1760034117552,3.05690765,218.9,218.84,16.11599755]
[1760034117735,3.05690765,218.92,218.85,0.67]
[1760034118051,4.5676515,218.94,218.85,0.67]
[1760034118255,3.05690765,218.93,218.85,0.67]
[1760034118753,4.5676515,218.94,218.85,0.67]
[1760034118955,3.75690765,218.93,218.87,10.87647521]
[1760034119126,3.05690765,218.93,218.87,10.87647521]
[1760034119327,3.05690765,218.93,218.87,11.54647521]
[1760034120137,3.05690765,218.93,218.88,32.93]
[1760034120340,4.5676515,218.94,218.88,32.93]
[1760034120855,7.62455915,218.94,218.88,32.93]
[1760034121438,19.04321266,218.94,218.88,32.93]
[1760034121747,3.05690765,218.93,218.88,32.93]
[1760034121938,3.05690765,218.93,218.89,0.67]
[1760034122259,4.56662708,218.98,218.91,10.87647521]
[1760034122453,4.56662708,218.98,218.92,32.93]
[1760034123483,0.7,218.97,218.92,32.26]
[1760034123662,0.7,218.96,218.92,32.26]
[1760034123849,0.7,218.96,218.91,10.87647521]
[1760034124043,21.5,218.95,218.88,32.26]
[1760034124241,3.75875875,218.94,218.88,32.26]
[1760034124444,0.7,218.93,218.85,0.72]
[1760034124648,0.7,218.93,218.86,43.15647521]
[1760034124961,3.75875875,218.94,218.86,43.87647521]
[1760034125162,4.56747136,218.94,218.88,10.87647521]
[1760034125854,5.26727297,218.95,218.87,11.59647521]
[1760034126034,16.68540496,218.95,218.87,11.59647521]
[1760034127363,16.68540496,218.95,218.88,32.28]
[1760034128070,4.56727297,218.95,218.89,0.72]
[1760034128269,0.7,218.99,218.9,10.87647521]
[1760034128492,0.7,218.99,218.92,10.87647521]
[1760034128658,20.8,218.98,218.93,32.28]
[1760034128843,21.5,218.98,218.93,32.28]
[1760034129158,26.0668174,218.98,218.93,32.28]
[1760034129559,36.78338512,218.98,218.93,32.28]
[1760034129758,37.48338512,218.98,218.93,32.28]
[1760034130462,36.78338512,218.98,218.93,33.0]
[1760034130756,37.48338512,218.98,218.93,32.28]
[1760034130945,37.48338512,218.98,218.93,33.0]
[1760034131353,37.48338512,218.98,218.93,32.28]
[1760034131753,37.48338512,218.98,218.93,33.0]
[1760034131945,37.48338512,218.98,218.93,113.3]
[1760034132463,0.7,219.02,218.94,11.59647521]
[1760034132638,0.7,219.02,218.95,0.72]
[1760034132968,0.7,219.02,218.95,81.02]
[1760034133142,4.56600155,219.01,218.95,81.02]
[1760034133342,5.26600155,219.01,218.95,80.3]
[1760034133966,5.26600155,219.01,218.95,81.02]
[1760034135576,0.7,219.0,218.95,80.3]
[1760034136877,0.7,218.99,218.94,32.24]
[1760034137383,0.7,218.98,218.94,32.24]
[1760034137562,11.41500388,219.01,218.94,32.24]
[1760034137762,0.7,219.0,218.94,32.24]
[1760034137973,0.7,218.99,218.94,32.22]
[1760034138172,4.56662708,218.98,218.94,0.72]
[1760034138376,0.7,218.97,218.94,80.3]
[1760034138583,0.7,218.96,218.9,80.3]
[1760034138778,0.7,218.95,218.9,80.3]
[1760034138981,0.7,218.94,218.9,80.3]
[1760034139280,0.7,218.93,218.87,80.3]
[1760034139472,0.7,218.92,218.86,80.3]
[1760034139670,0.7,218.91,218.86,80.3]
[1760034139869,0.7,218.9,218.86,80.3]
[1760034140081,0.7,218.89,218.86,80.3]
[1760034140261,0.7,218.88,218.86,80.3]
[1760034140583,20.8,218.91,218.86,80.3]
[1760034140767,0.7,218.9,218.86,80.3]
[1760034141164,0.7,218.89,218.86,80.3]
[1760034142190,4.56871345,218.88,218.86,80.3]
[1760034143872,4.56871345,218.88,218.84,113.2]
[1760034144176,0.72,218.88,218.84,80.3]
[1760034144375,0.72,218.88,218.84,112.52]
[1760034144676,16.7092948,218.9,218.85,0.66]
[1760034144876,25.36810574,218.91,218.86,0.66]
[1760034145070,25.36810574,218.91,218.84,112.52]
[1760034145071,25.36810574,218.91,218.87,0.66]
[1760034145466,36.78832409,218.91,218.84,113.18]
[1760034145772,0.72,218.9,218.84,113.18]
[1760034146376,36.78832409,218.91,218.85,0.66]
[1760034146785,4.56810574,218.91,218.85,0.66]
[1760034146989,25.36810574,218.91,218.85,0.66]
[1760034148096,3.82290777,218.99,218.86,10.87647521]
[1760034148278,15.98465472,218.96,218.88,10.87647521]
[1760034148598,3.06475776,218.95,218.9,10.87647521]
[1760034148900,4.5670442,218.96,218.91,0.66]
[1760034149102,0.72,218.95,218.91,32.22]
[1760034149393,0.72,218.94,218.91,32.22]
[1760034149992,4.56767003,218.93,218.89,10.87647521]
[1760034150197,4.56767003,218.93,218.9,32.24]
[1760034150697,4.56767003,218.93,218.89,10.87647521]
[1760034150884,4.56767003,218.93,218.91,32.24]
[1760034151276,4.56767003,218.93,218.91,32.22]
[1760034151785,3.06638866,218.95,218.92,0.66]
[1760034151993,4.56711129,218.96,218.93,0.66]
[1760034152179,11.4157229,219.0,218.94,32.88]
[1760034152774,15.18271368,219.0,218.94,32.22]
[1760034152975,15.98246494,218.99,218.94,32.22]
[1760034153170,3.76699078,218.98,218.94,32.22]
[1760034154185,3.06782163,218.98,218.94,32.22]
[1760034154383,14.48386802,218.99,218.94,32.22]
[1760034154696,15.18386802,218.99,218.94,32.22]
[1760034155402,19.75028657,218.99,218.94,32.22]
[1760034155578,3.06782163,218.98,218.94,32.22]
[1760034155778,3.06782163,218.98,218.94,112.52]
[1760034156004,3.06782163,218.98,218.95,32.22]
[1760034156197,3.76782163,218.98,218.95,32.22]
[1760034156494,4.56683563,218.97,218.95,32.22]
[1760034156798,4.56683563,218.97,218.95,32.2]
[1760034157183,4.56683563,218.97,218.94,80.3]
[1760034157400,4.56683563,218.97,218.95,32.2]
[1760034160293,0.7,218.96,218.94,80.3]
[1760034160494,0.7,218.95,218.94,80.3]
[1760034161808,5.26725279,218.95,218.94,80.3]
[1760034167411,16.68538478,218.95,218.86,0.67]
[1760034167612,3.06819217,218.94,218.87,31.26]
[1760034167904,0.72,218.93,218.87,31.26]
[1760034168396,0.72,218.93,218.87,31.93]
[1760034169592,4.56787867,218.92,218.87,31.93]
[1760034169799,7.6374628,218.92,218.87,31.93]
[1760034170607,7.6374628,218.92,218.88,0.67]
[1760034171402,7.6374628,218.92,218.89,0.67]
[1760034171615,7.6374628,218.92,218.9,0.67]
[1760034171800,25.36765701,218.94,218.91,0.67]
[1760034172109,3.06928511,218.93,218.91,0.67]
[1760034172487,3.06928511,218.93,218.88,43.01647521]
[1760034172685,3.06928511,218.93,218.89,0.67]
[1760034173007,4.56787867,218.92,218.9,0.67]
[1760034173511,4.56787867,218.92,218.88,43.01647521]
[1760034173703,4.56787867,218.92,218.89,0.67]
[1760034175090,0.72,218.91,218.81,20.8]
[1760034175306,20.8,218.88,218.79,13.71522618]
[1760034175512,23.86928511,218.87,218.81,0.67]
[1760034175689,20.8,218.87,218.81,0.67]
[1760034176027,20.8,218.87,218.81,32.93]
[1760034176210,0.72,218.91,218.82,0.67]
[1760034176409,3.06915872,218.91,218.82,0.67]
[1760034176999,4.56829602,218.9,218.82,5.23990519]
[1760034177202,4.56788467,218.92,218.83,11.54647521]
[1760034177403,4.56788467,218.92,218.84,0.67]
[1760034177599,4.56788467,218.92,218.85,32.26]
[1760034178006,4.56788467,218.92,218.86,0.67]
[1760034179213,7.6362854,218.93,218.87,10.87647521]
[1760034179414,4.56768062,218.93,218.88,0.67]
[1760034179795,0.72,218.92,218.82,32.26]
[1760034180008,3.06860478,218.92,218.83,11.54647521]
[1760034180207,4.56768062,218.93,218.85,10.87647521]
[1760034180513,4.56768062,218.93,218.86,32.95]
[1760034180722,4.56768062,218.93,218.87,0.67]
[1760034181107,5.28768062,218.93,218.87,0.67]
[1760034181317,8.3562854,218.93,218.85,32.95]
[1760034181510,21.52,218.92,218.85,32.28]
[1760034181711,3.78860478,218.91,218.85,32.28]
[1760034181904,0.72,218.9,218.84,32.95]
[1760034182110,0.72,218.89,218.84,32.28]
[1760034182315,0.72,218.89,218.84,32.95]
[1760034183236,4.56871345,218.88,218.84,32.95]
[1760034183566,20.8,218.85,218.76,0.79]
[1760034183695,3.75179376,218.84,218.76,0.79]
[1760034184098,3.07179376,218.83,218.76,0.79]
[1760034184328,3.75179376,218.84,218.76,0.79]
[1760034184921,4.56975734,218.83,218.77,10.87647521]
[1760034185120,4.56975734,218.83,218.78,0.69]
[1760034185316,4.56940975,218.85,218.79,0.69]
[1760034185526,4.56872927,218.88,218.79,0.69]
[1760034187130,4.56872927,218.88,218.8,4.57038391]
[1760034187353,4.56872927,218.88,218.81,43.90647521]